bitfinex/quotes_ETHUSD_20241116
["timestamp","ask_amount","ask_price","bid_price","bid_amount"]
[1731761915764,3.69835,3176.3,3175.2,3.14938]
[1731761915915,3.69835,3176.3,3175.2,3.77152563]
[1731761916319,3.14858,3176.1,3175.4,3.14914]
[1731761916568,0.55,3175.8,3174.8,0.3146]
[1731761916736,3.14927,3175.4,3174.6,3.1499]
[1731761917049,3.01747634,3176.0,3174.6,3.1499]
[1731761917050,3.14878,3175.9,3174.7,0.31499]
[1731761917236,3.14936,3175.3,3174.6,3.1499]
[1731761917829,3.14913,3175.5,3174.3,3.01747634]
[1731761918063,3.14913,3175.5,3174.8,3.14979]
[1731761918424,0.55,3175.6,3174.8,3.14979]
[1731761918758,3.14921,3175.4,3174.8,3.14979]
[1731761920647,0.6266251,3175.5,3174.9,3.1497]
[1731761920821,3.7757451,3175.5,3174.9,3.1497]
[1731761922370,3.14859,3176.1,3175.5,3.14907]
[1731761922571,3.14859,3176.1,3175.2,3.14936]
[1731761922777,3.14859,3176.1,3175.4,3.14919]
[1731761923147,3.14859,3176.1,3175.2,3.14931]
[1731761923148,3.1487,3176.0,3175.2,3.14931]
[1731761923357,3.14859,3176.1,3175.4,3.14913]
[1731761924071,0.61522963,3176.2,3175.2,0.63618712]
[1731761924275,3.14852,3176.1,3175.4,3.14916]
[1731761924775,3.14839,3176.3,3175.6,3.149]
[1731761925267,3.14839,3176.3,3175.7,3.14888]
[1731761925428,3.69823,3176.4,3175.8,3.14879]
[1731761925625,3.14833,3176.3,3175.6,3.149]
[1731761926086,3.14833,3176.3,3175.7,0.23543398]
[1731761926284,3.14833,3176.3,3175.8,0.23543398]
[1731761926571,3.14833,3176.3,3174.9,6.79713334]
[1731761926572,3.14873,3175.9,3175.2,3.14939]
[1731761926781,3.14873,3175.9,3175.3,0.23542151]
[1731761926940,3.14852,3176.1,3175.5,3.14904]
[1731761927130,3.14852,3176.1,3175.6,0.23542151]
[1731761927470,3.14852,3176.1,3175.5,3.14904]
[1731761927625,3.14843,3176.2,3175.6,3.38436796]
[1731761927831,3.14843,3176.2,3175.6,3.14896]
[1731761930566,0.61525871,3176.3,3175.7,0.23543809]
[1731761930567,3.14851,3176.1,3175.7,0.23543809]
[1731761930773,3.14851,3176.1,3175.2,6.16685634]
[1731761930774,3.14851,3176.1,3175.5,3.1491]
[1731761930946,3.14851,3176.1,3175.6,0.2354423]
[1731761931150,3.14851,3176.1,3175.5,3.1491]
[1731761931373,3.14851,3176.1,3175.6,0.23547686]
[1731761931577,3.14851,3176.1,3175.5,3.1491]
[1731761931785,3.14851,3176.1,3175.6,0.2354756]
[1731761932079,3.14851,3176.1,3175.5,3.1491]
[1731761932443,3.14851,3176.1,3175.2,6.16685634]
[1731761932765,3.76359871,3176.3,3175.4,3.14913]
[1731761933011,3.1486,3176.1,3175.4,3.14913]
[1731761933451,3.14862,3176.0,3175.4,3.14913]
[1731761933644,3.1486,3176.1,3175.4,3.14913]
[1731761934184,3.14866,3176.0,3175.4,3.14913]
[1731761936792,3.14866,3176.0,3175.3,0.62078994]
[1731761936999,3.14866,3176.0,3175.3,3.77008994]
[1731761938652,3.14866,3176.0,3175.3,4.44884657]
[1731761940709,3.14866,3176.0,3175.3,1.29954657]
[1731761940860,0.61525871,3176.3,3175.0,35.0]
[1731761940861,3.14894,3175.7,3175.0,35.0]
[1731761941062,3.14894,3175.7,3175.0,6.14954]
[1731761941986,3.14894,3175.7,3175.1,3.14949]
[1731761942166,3.14872,3175.9,3175.3,3.1493]
[1731761942359,3.14879,3175.9,3175.2,3.14938]
[1731761943405,3.14888,3175.8,3175.2,3.14938]
[1731761943761,3.14911,3175.5,3175.0,3.0]
[1731761943967,3.14911,3175.5,3174.9,3.01747634]
[1731761943968,3.14924,3175.4,3174.9,3.01747634]
[1731761944294,3.14911,3175.5,3174.7,3.14986]
[1731761944469,3.14911,3175.5,3174.8,3.14979]
[1731761944670,3.14922,3175.4,3174.8,3.14979]
[1731761944878,3.14922,3175.4,3174.7,3.14986]
[1731761945414,3.14922,3175.4,3174.8,3.1498]
[1731761945986,3.14905,3175.6,3174.9,3.01747634]
[1731761946183,3.14905,3175.6,3174.8,3.1498]
[1731761946383,3.14934,3175.3,3174.7,3.0]
[1731761946786,3.14934,3175.3,3174.7,6.1499]
[1731761947221,3.14944,3175.2,3174.7,3.0]
[1731761947573,3.14953,3175.1,3174.6,3.01747634]
[1731761948057,3.14934,3175.3,3174.6,3.01747634]
[1731761948185,3.14934,3175.3,3174.6,9.30847581]
[1731761948670,3.14942,3175.2,3174.6,9.30847581]
[1731761949307,3.14934,3175.3,3174.6,9.30847581]
[1731761950699,3.14943,3175.2,3174.6,9.30847581]
[1731761950900,3.14961,3175.0,3174.6,3.01747634]
[1731761951207,3.14982,3174.8,3174.3,6.01747634]
[1731761951845,3.14982,3174.8,3174.3,3.01747634]
[1731761952007,3.14961,3175.0,3174.3,3.01747634]
[1731761952008,6.29928,3175.0,3174.3,6.16776634]
[1731761952208,3.14973,3174.9,3174.3,6.16776634]
[1731761952414,3.14973,3174.9,3174.3,3.01747634]
[1731761952732,3.14961,3175.0,3174.3,3.01747634]
[1731761952912,3.14984,3174.8,3174.3,3.01747634]
[1731761953114,3.14971,3174.9,3174.3,6.16774634]
[1731761954537,3.14971,3174.9,3174.3,3.01747634]
[1731761956226,3.14981,3174.8,3174.3,3.01747634]
[1731761956430,3.14962,3175.0,3174.3,6.16770634]
[1731761956907,3.14962,3175.0,3174.3,3.01747634]
[1731761957109,3.14972,3174.9,3174.3,3.01747634]
[1731761957497,3.14962,3175.0,3174.3,6.16776634]
[1731761957707,3.14979,3174.9,3174.3,3.01747634]
[1731761958313,3.14979,3174.9,3174.3,6.15847581]
[1731761958642,3.14979,3174.9,3174.3,3.01747634]
[1731761958845,3.14979,3174.9,3174.3,38.01747634]
[1731761959536,3.1499,3174.7,3174.3,3.01747634]
[1731761959898,3.1499,3174.7,3174.1,3.15048]
[1731761960106,3.1499,3174.7,3174.2,35.0]
[1731761960624,3.1501,3174.5,3174.0,0.32866046]
[1731761960943,3.1501,3174.5,3173.9,6.15067]
[1731761962046,3.15037,3174.3,3173.8,3.0]
[1731761962553,3.15026,3174.4,3173.7,3.0]
[1731761962731,3.15026,3174.4,3173.7,6.15084]
[1731761963054,3.15003,3174.6,3173.9,3.0]
[1731761963295,3.15017,3174.5,3173.9,3.0]
[1731761963459,3.15017,3174.5,3173.8,3.01747634]
[1731761963658,3.15017,3174.5,3173.8,6.16825634]
[1731761965568,0.01,3176.0,3174.4,3.01747634]
[1731761965751,3.14941,3175.2,3174.6,3.14999]
[1731761965954,3.14927,3175.4,3174.7,6.23030194]
[1731761966145,3.14917,3175.5,3174.7,6.23030194]
[1731761966341,3.14917,3175.5,3174.7,7.16833113]
[1731761966572,3.14923,3175.4,3174.8,35.0]
[1731761966777,3.1495,3175.1,3174.7,3.95550553]
[1731761967099,3.1495,3175.1,3174.7,3.01747634]
[1731761967589,3.1495,3175.1,3174.6,35.0]
[1731761967756,3.14938,3175.3,3174.6,35.0]
[1731761967953,0.64142053,3175.5,3174.6,3.14999]
[1731761967954,3.14942,3175.2,3174.6,3.14999]
[1731761968490,3.14942,3175.2,3174.6,3.56814946]
[1731761969394,3.14941,3175.2,3174.4,3.01747634]
[1731761969597,0.55,3175.4,3173.9,35.0]
[1731761969882,0.55,3175.4,3173.4,0.3147]
[1731761969883,0.55,3175.2,3173.4,3.01747634]
[1731761970104,3.1496,3175.0,3173.5,0.61686663]
[1731761970281,3.1507,3173.9,3173.4,3.01747634]
[1731761970447,3.1505,3174.1,3173.4,6.16866634]
[1731761970682,3.15039,3174.3,3173.6,3.15097]
[1731761970875,3.15039,3174.3,3173.5,0.61686663]
[1731761971219,3.1505,3174.1,3173.5,0.61686663]
[1731761971622,3.1505,3174.1,3173.5,3.76792663]
[1731761971828,3.1505,3174.1,3173.5,0.61686663]
[1731761971829,3.15056,3174.1,3173.5,0.61686663]
[1731761972326,3.15076,3173.9,3173.4,3.01747634]
[1731761972525,3.15082,3173.8,3173.2,3.15136]
[1731761972681,3.1509,3173.7,3173.0,3.15157]
[1731761972880,3.1509,3173.7,3173.1,3.14099947]
[1731761973497,0.63688529,3174.3,3173.1,3.14099947]
[1731761973696,3.15101,3173.6,3173.0,3.15157]
[1731761974529,3.15091,3173.7,3173.0,3.15157]
[1731761976434,3.15091,3173.7,3173.1,3.15149]
[1731761976939,3.15069,3174.0,3173.1,3.15149]
[1731761976940,3.15069,3174.0,3173.2,3.15133]
[1731761977098,3.15082,3173.8,3173.2,4.08335963]
[1731761978390,0.63688529,3174.3,3173.2,4.08335963]
[1731761978624,0.55,3174.1,3173.2,4.08335963]
[1731761978923,3.15076,3173.9,3173.2,4.08335963]
[1731761979736,3.70049,3174.1,3173.3,0.71638579]
[1731761979900,3.15049,3174.1,3173.4,3.15117]
[1731761980299,3.15049,3174.1,3173.3,0.71638579]
[1731761980300,3.15068,3174.0,3173.3,0.71638579]
[1731761980500,3.15068,3174.0,3173.3,3.86764579]
[1731761980722,3.15068,3174.0,3173.4,0.70189758]
[1731761981720,3.15049,3174.1,3173.5,3.15105]
[1731761981890,3.15049,3174.1,3173.4,0.70189758]
[1731761982099,3.15049,3174.1,3173.4,3.85306758]
[1731761982300,3.15031,3174.3,3173.4,0.70189758]
[1731761982502,3.15031,3174.3,3173.6,3.15091]
[1731761983402,3.15042,3174.2,3173.6,3.15091]
[1731761983602,3.15031,3174.3,3173.4,6.16863634]
[1731761983603,3.15031,3174.3,3173.4,3.01747634]
[1731761983807,3.15011,3174.5,3173.7,3.15082]
[1731761984029,3.1503,3174.3,3173.7,3.15082]
[1731761984343,3.1503,3174.3,3173.7,3.78101]
[1731761985319,3.15011,3174.5,3173.7,3.78101]
[1731761985703,0.63338581,3174.6,3173.7,3.78101]
[1731761985921,3.15021,3174.4,3173.7,3.78101]
[1731761986378,3.1503,3174.3,3173.7,3.78101]
[1731761986723,3.14992,3174.7,3174.1,3.15048]
[1731761987136,0.62777951,3175.2,3174.5,3.15003]
[1731761987434,3.14955,3175.1,3174.5,3.15003]
[1731761987635,3.14955,3175.1,3174.3,3.15027]
[1731761988053,0.62777951,3175.2,3173.9,3.15067]
[1731761988219,3.15,3174.7,3173.7,6.48304634]
[1731761988431,3.15,3174.7,3174.0,3.15059]
[1731761989826,3.15,3174.7,3174.1,3.15048]
[1731761990329,3.15,3174.7,3173.8,3.21376584]
[1731761990524,3.15,3174.7,3174.1,3.15041]
[1731761990751,3.14991,3174.7,3174.0,3.15051]
[1731761991034,3.15002,3174.6,3174.0,0.67037041]
[1731761991349,3.14987,3174.8,3174.1,3.15047]
[1731761992361,3.14877,3175.9,3174.4,3.1502]
[1731761992528,3.14937,3175.3,3174.7,3.14989]
[1731761993067,3.14971,3174.9,3174.3,3.15021]
[1731761993224,0.631742,3175.5,3174.1,3.15047]
[1731761993462,3.14948,3175.2,3174.5,3.15007]
[1731761993682,3.14964,3175.0,3174.4,3.1501]
[1731761994012,3.14951,3175.1,3174.4,3.1501]
[1731761994214,3.14964,3175.0,3174.4,3.1501]
[1731761995418,3.14948,3175.2,3174.3,3.1503]
[1731761995962,3.14955,3175.1,3174.5,3.15009]
[1731761997133,3.14934,3175.3,3174.3,6.16777634]
[1731761997336,3.14934,3175.3,3174.6,3.15]
[1731761998032,3.14942,3175.2,3174.6,3.15]
[1731761998189,3.14922,3175.4,3174.8,3.14978]
[1731761998396,3.14922,3175.4,3174.6,3.15]
[1731761998635,3.14941,3175.2,3174.6,3.15]
[1731761999057,3.14836,3176.3,3174.6,3.01747634]
[1731761999253,3.14811,3176.6,3175.3,3.14924]
[1731761999254,3.14854,3176.1,3175.3,3.14924]
[1731761999544,3.14874,3175.9,3175.3,3.14924]
[1731762000194,0.01,3176.7,3175.1,3.14949]
[1731762000391,3.14863,3176.0,3175.1,3.14949]
[1731762000595,3.14884,3175.8,3175.1,3.14949]
[1731762001398,3.14884,3175.8,3175.0,3.01747634]
[1731762001800,3.14884,3175.8,3175.2,3.1494]
[1731762002339,3.14884,3175.8,3175.0,6.16700634]
[1731762002639,0.61617223,3176.3,3174.7,3.01747634]
[1731762002640,3.149,3175.7,3174.7,3.01747634]
[1731762002800,3.149,3175.7,3175.0,3.14953]
[1731762003309,3.14884,3175.8,3175.2,3.14939]
[1731762003697,3.14873,3175.9,3175.3,3.14924]
[1731762004498,0.55,3176.2,3175.0,3.14957]
[1731762004700,3.14874,3175.9,3175.0,3.14957]
[1731762005014,3.14874,3175.9,3175.2,3.14934]
[1731762005693,0.55,3176.2,3175.2,3.14931]
[1731762006240,3.1487,3176.0,3175.3,3.14921]
[1731762006549,3.69845,3176.2,3175.5,3.14908]
[1731762006713,3.14805,3176.6,3175.3,3.33240734]
[1731762007040,3.14832,3176.3,3175.6,3.149]
[1731762007252,3.14854,3176.1,3175.4,3.14919]
[1731762007401,3.14877,3175.9,3175.3,3.1493]
[1731762007744,3.14877,3175.9,3175.0,6.16706634]
[1731762007745,3.14834,3176.3,3175.1,3.06297894]
[1731762007910,3.14842,3176.2,3175.5,3.14903]
[1731762009064,3.14838,3176.3,3175.6,3.149]
[1731762009450,3.14848,3176.2,3175.6,3.149]
[1731762009690,0.55,3176.5,3175.3,3.01747634]
[1731762009876,3.14869,3176.0,3175.1,3.14948]
[1731762010079,0.55,3176.1,3175.1,3.76617563]
[1731762010246,3.14891,3175.7,3175.0,3.14952]
[1731762010579,3.14904,3175.6,3175.0,3.14952]
[1731762010968,3.14931,3175.3,3174.7,3.01747634]
[1731762011130,3.14942,3175.2,3174.5,3.15005]
[1731762011336,3.14931,3175.3,3174.5,3.15005]
[1731762011337,3.14954,3175.1,3174.5,3.15005]
[1731762011543,3.14972,3174.9,3174.3,3.15029]
[1731762011860,3.1499,3174.7,3174.1,3.01747634]
[1731762012071,3.1499,3174.7,3174.1,3.15049]
[1731762012380,3.1501,3174.5,3173.8,3.01747634]
[1731762012539,3.1501,3174.5,3173.8,6.16824634]
[1731762013172,3.1501,3174.5,3173.8,3.01747634]
[1731762014183,3.15,3174.6,3173.7,3.15088]
[1731762014341,3.15006,3174.6,3173.8,3.38568405]
[1731762014675,0.55,3174.7,3173.8,3.15072]
[1731762014856,3.15021,3174.4,3173.8,3.15072]
[1731762015187,3.15011,3174.5,3173.8,3.15072]
[1731762016072,3.15022,3174.4,3173.8,3.15072]
[1731762016512,3.15022,3174.4,3173.6,6.15094]
[1731762016686,3.15011,3174.5,3173.6,6.15094]
[1731762016687,3.15031,3174.3,3173.7,3.38592196]
[1731762016890,3.15031,3174.3,3173.7,3.15087]
[1731762017085,3.15011,3174.5,3173.7,3.15087]
[1731762017289,3.15031,3174.3,3173.7,3.15087]
[1731762017722,3.1498,3174.8,3173.2,3.01747634]
[1731762018015,3.7004,3174.2,3173.2,3.08049775]
[1731762018312,3.7004,3174.2,3173.3,3.15129]
[1731762018516,3.7004,3174.2,3173.5,3.15102]
[1731762018721,3.15002,3174.6,3173.7,3.15082]
[1731762018924,0.55,3174.7,3173.9,3.15064]
[1731762019073,0.55,3175.0,3173.0,3.0]
[1731762019278,0.55,3175.0,3173.2,3.15135]
[1731762019279,3.15067,3174.0,3173.2,3.15135]
[1731762019471,3.15067,3174.0,3173.3,3.15129]
[1731762019920,3.15071,3173.9,3173.3,3.15129]
[1731762020118,3.15071,3173.9,3173.1,6.15143]
[1731762020291,3.15071,3173.9,3173.1,3.15143]
[1731762020472,3.15086,3173.8,3173.1,3.15143]
[1731762021274,3.15086,3173.8,3173.2,3.15135]
[1731762021920,3.1507,3173.9,3173.2,3.15135]
[1731762022294,3.15081,3173.8,3173.2,3.15135]
[1731762023529,3.1506,3174.0,3173.3,3.15128]
[1731762023727,3.15078,3173.9,3173.1,3.15143]
[1731762024001,3.1506,3174.0,3173.2,3.15132]
[1731762024207,3.1507,3173.9,3173.2,3.15132]
[1731762025647,3.15083,3173.8,3173.2,3.15132]
[1731762026741,3.15072,3173.9,3173.2,3.15133]
[1731762028005,3.15033,3174.3,3173.2,0.93833876]
[1731762028343,3.15042,3174.2,3173.5,3.15102]
[1731762028774,3.15042,3174.2,3173.6,3.15096]
[1731762029062,3.15042,3174.2,3173.5,3.15102]
[1731762029622,3.15042,3174.2,3173.6,3.15099]
[1731762030440,3.15012,3174.5,3173.6,3.15099]
[1731762030667,3.15012,3174.5,3173.7,3.15086]
[1731762030867,3.15034,3174.3,3173.7,3.15086]
[1731762031629,3.1504,3174.2,3173.6,3.15097]
[1731762032045,3.1502,3174.4,3173.7,3.15085]
[1731762032443,3.1502,3174.4,3173.7,3.781032]
[1731762032630,3.1503,3174.3,3173.7,0.630182]
[1731762033129,3.78818321,3174.6,3173.4,3.76804463]
[1731762033130,3.1507,3173.9,3173.4,35.0]
[1731762033343,3.15051,3174.1,3173.1,3.15146]
[1731762033569,3.1503,3174.3,3173.1,3.15146]
[1731762033756,3.15089,3173.7,3173.1,3.15146]
[1731762034332,3.151,3173.6,3173.0,3.01747634]
[1731762034538,3.15088,3173.8,3173.1,3.15145]
[1731762034979,3.15088,3173.8,3173.0,3.01747634]
[1731762035241,3.15106,3173.6,3172.9,6.15168]
[1731762035690,3.15106,3173.6,3172.9,3.0]
[1731762036049,3.1512,3173.4,3172.8,6.15178]
[1731762036586,3.15131,3173.3,3172.6,3.15192]
[1731762036903,3.15119,3173.4,3172.7,3.15185]
[1731762037242,3.15102,3173.6,3172.8,3.15176]
[1731762037445,3.15113,3173.5,3172.8,3.15176]
[1731762038151,3.15113,3173.5,3172.9,3.15162]
[1731762039951,3.15119,3173.4,3172.7,6.16932634]
[1731762040860,3.15119,3173.4,3172.8,3.15177]
[1731762041261,3.1515,3173.1,3172.5,6.15208]
[1731762041763,3.1515,3173.1,3172.4,3.01747634]
[1731762041968,3.15178,3172.9,3172.2,3.15235]
[1731762042153,3.15166,3173.0,3172.3,3.21531822]
[1731762042352,3.15159,3173.0,3172.3,3.21531822]
[1731762042574,3.15169,3172.9,3172.3,3.21531822]
[1731762043508,3.15169,3172.9,3172.3,3.15228]
[1731762045086,3.15169,3172.9,3172.1,6.16994634]
[1731762045391,3.15169,3172.9,3172.2,35.0]
[1731762045610,3.15169,3172.9,3172.2,38.15236]
[1731762045750,3.15169,3172.9,3172.1,3.76946463]
[1731762045958,3.15195,3172.7,3172.1,3.76946463]
[1731762046157,3.15202,3172.6,3172.0,6.15255]
[1731762046651,3.15172,3172.9,3172.0,6.15255]
[1731762046890,3.15185,3172.8,3172.1,3.15246]
[1731762047097,3.15191,3172.7,3172.1,3.15246]
[1731762048194,3.15191,3172.7,3171.9,6.15262]
[1731762048408,3.152,3172.6,3172.0,1.23228463]
[1731762050074,3.15134,3173.3,3172.0,1.23228463]
[1731762050075,3.01747634,3173.6,3172.2,3.15235]
[1731762050273,3.15158,3173.1,3172.4,3.15213]
[1731762050473,3.77505026,3173.3,3172.7,3.15187]
[1731762050658,3.15136,3173.3,3172.7,3.15187]
[1731762051396,3.15136,3173.3,3172.6,3.15198]
[1731762051558,3.1514,3173.2,3172.6,3.15198]
[1731762052122,3.1513,3173.3,3172.6,3.15198]
[1731762052461,0.62728265,3173.6,3172.3,3.0]
[1731762052654,3.15077,3173.9,3173.3,3.15129]
[1731762052882,3.15081,3173.8,3173.1,3.15148]
[1731762053160,3.15092,3173.7,3173.1,3.15148]
[1731762053568,3.15076,3173.9,3173.1,3.15148]
[1731762053831,3.15096,3173.7,3172.9,3.15165]
[1731762054075,3.15096,3173.7,3172.8,3.15178]
[1731762054225,3.15085,3173.8,3173.0,3.15149]
[1731762054417,3.15102,3173.6,3173.0,3.15149]
[1731762054621,3.79434507,3174.1,3172.6,3.15193]
[1731762054858,3.79434507,3174.1,3172.3,6.15227]
[1731762054859,3.15129,3173.3,3172.3,6.15227]
[1731762055064,3.15156,3173.1,3172.4,3.15218]
[1731762056655,3.1516,3173.0,3172.4,3.15218]
[1731762056975,3.1516,3173.0,3172.2,3.15238]
[1731762056976,3.15119,3173.4,3172.2,3.15238]
[1731762057121,3.15193,3172.7,3172.0,3.46725]
[1731762057323,3.15158,3173.1,3172.2,3.1523]
[1731762057538,3.15163,3173.0,3172.2,3.1523]
[1731762057758,3.15158,3173.1,3172.2,3.1523]
[1731762058076,3.15172,3172.9,3172.2,3.1523]
[1731762059376,3.15172,3172.9,3172.0,3.46727]
[1731762059531,3.15189,3172.7,3172.0,3.15257]
[1731762059963,3.15189,3172.7,3171.8,6.17023634]
[1731762059964,3.1522,3172.4,3171.8,3.15276]
[1731762060369,3.1522,3172.4,3171.6,3.15296]
[1731762060878,3.15235,3172.3,3171.6,3.15296]
[1731762061377,3.1522,3172.4,3171.8,3.15274]
[1731762061745,3.7764615,3173.2,3172.0,3.15249]
[1731762061746,3.15183,3172.8,3172.0,3.15249]
[1731762061946,3.15176,3172.9,3172.2,3.15231]
[1731762062160,0.6250315,3173.2,3172.3,3.21529621]
[1731762062466,3.15167,3173.0,3172.3,3.15225]
[1731762062973,3.15169,3172.9,3172.1,3.15247]
[1731762063186,3.15169,3172.9,3172.2,3.15236]
[1731762063472,3.15169,3172.9,3172.1,3.15239]
[1731762063632,3.15169,3172.9,3172.3,3.15226]
[1731762063839,3.15151,3173.1,3172.3,3.15226]
[1731762064035,3.15151,3173.1,3172.4,3.15218]
[1731762064788,3.15151,3173.1,3171.7,3.15283]
[1731762064789,0.55,3173.2,3171.5,3.15305]
[1731762064999,3.15235,3172.3,3171.7,3.15286]
[1731762065496,3.55,3172.9,3171.3,3.15326]
[1731762065695,3.15239,3172.2,3171.6,3.15297]
[1731762065856,3.15246,3172.2,3171.3,3.15326]
[1731762066195,3.55,3172.9,3171.3,3.15326]
[1731762066196,3.15272,3171.9,3171.3,3.50341119]
[1731762066384,3.15257,3172.1,3171.4,3.15315]
[1731762066897,3.15257,3172.1,3171.3,3.15326]
[1731762066898,3.15257,3172.1,3171.5,3.15307]
[1731762068313,0.62648096,3172.3,3171.5,3.15307]
[1731762068603,0.62648096,3172.3,3171.9,3.15266]
[1731762068754,3.15151,3173.1,3171.4,3.1531]
[1731762068755,3.01747634,3173.0,3171.4,3.1531]
[1731762068958,3.1525,3172.1,3171.4,3.1531]
[1731762069200,0.6281825,3172.4,3171.7,3.15281]
[1731762069410,3.7803725,3172.4,3171.7,3.1528]
[1731762069705,3.7803725,3172.4,3171.5,3.15303]
[1731762069706,3.15228,3172.3,3171.5,3.15303]
[1731762069865,3.15251,3172.1,3171.5,3.468333]
[1731762070073,3.15251,3172.1,3171.5,3.15303]
[1731762070604,3.1526,3172.0,3171.3,3.15325]
[1731762070756,3.1526,3172.0,3171.4,3.15317]
[1731762071693,3.15279,3171.8,3171.2,3.15337]
[1731762071996,0.55,3172.1,3171.2,3.15337]
[1731762072163,3.70255,3172.1,3171.4,3.15311]
[1731762072360,3.15239,3172.2,3171.4,3.783758]
[1731762072587,0.6281825,3172.4,3171.6,3.15296]
[1731762072826,3.7804325,3172.4,3171.6,3.15293]
[1731762072988,3.15229,3172.3,3171.6,3.15293]
[1731762073331,0.6281825,3172.4,3171.7,3.15281]
[1731762073511,3.7804425,3172.4,3171.7,3.15281]
[1731762073887,0.6281825,3172.4,3171.8,3.15272]
[1731762074124,0.6281825,3172.4,3171.9,3.1526]
[1731762074494,0.6281825,3172.4,3171.7,3.15281]
[1731762074689,3.7803625,3172.4,3171.7,3.15281]
[1731762074999,0.6281825,3172.4,3172.0,3.15252]
[1731762075188,0.6281825,3172.4,3171.9,3.15261]
[1731762075385,0.6281825,3172.4,3172.0,3.15258]
[1731762076134,0.6281825,3172.4,3171.8,3.15275]
[1731762076491,0.6281825,3172.4,3171.9,3.15259]
[1731762076691,0.6281825,3172.4,3171.7,0.61463259]
[1731762076891,0.6281825,3172.4,3171.9,3.1526]
[1731762077388,0.6281825,3172.4,3171.5,3.15306]
[1731762077590,3.15237,3172.3,3171.1,0.61709863]
[1731762077795,3.7803925,3172.4,3171.7,3.15288]
[1731762078007,3.7803925,3172.4,3171.8,3.15277]
[1731762078338,0.6281825,3172.4,3171.9,3.15268]
[1731762078507,0.6281825,3172.4,3172.1,3.15247]
[1731762078842,0.6281825,3172.4,3172.0,0.315268]
[1731762079332,0.6281825,3172.4,3172.1,3.1524]
[1731762079996,3.15169,3172.9,3172.2,3.15237]
[1731762080508,3.1515,3173.1,3172.2,3.15237]
[1731762080710,3.15185,3172.8,3172.2,3.15237]
[1731762081107,3.15191,3172.7,3172.0,3.15254]
[1731762081835,0.61916869,3172.6,3172.0,3.15254]
[1731762082030,0.61916869,3172.6,3172.2,3.15237]
[1731762082208,3.15176,3172.9,3172.2,3.15237]
[1731762082410,3.15183,3172.8,3172.2,3.15237]
[1731762082634,3.15183,3172.8,3172.0,3.15257]
[1731762082835,3.15189,3172.7,3172.0,3.15257]
[1731762082991,3.15183,3172.8,3172.0,3.15257]
[1731762083191,3.15183,3172.8,3172.1,3.15246]
[1731762083821,3.1519,3172.7,3172.1,3.15246]
[1731762084196,3.15183,3172.8,3172.1,3.15246]
[1731762084392,3.78656456,3172.8,3171.8,3.15275]
[1731762084700,3.15216,3172.5,3171.9,3.38820815]
[1731762084920,0.55,3172.7,3171.6,3.15294]
[1731762085124,3.15245,3172.2,3171.5,6.153]
[1731762085301,3.15245,3172.2,3171.5,3.0]
[1731762085500,3.1527,3171.9,3171.6,0.23562872]
[1731762085746,3.1527,3171.9,3170.8,3.33217634]
[1731762085946,3.1527,3171.9,3171.3,3.15327]
[1731762086399,3.1527,3171.9,3171.4,0.23564087]
[1731762086596,3.15287,3171.8,3171.4,0.23564087]
[1731762086802,3.15295,3171.7,3171.4,0.23564087]
[1731762087235,3.15287,3171.8,3171.4,0.23564087]
[1731762087852,3.15287,3171.8,3171.1,3.15344]
[1731762088036,3.15287,3171.8,3171.2,0.235657]
[1731762088235,3.15287,3171.8,3171.3,0.235657]
[1731762088461,3.15287,3171.8,3171.4,0.235657]
[1731762088786,3.15287,3171.8,3171.1,3.15344]
[1731762088922,3.1524,3172.2,3171.5,3.153]
[1731762089255,3.15268,3171.9,3171.3,3.15326]
[1731762089551,3.1528,3171.8,3171.4,0.23569732]
[1731762089758,3.15268,3171.9,3171.0,3.15357]
[1731762089908,3.15268,3171.9,3171.3,3.15328]
[1731762090112,3.15268,3171.9,3171.4,0.23569739]
[1731762090308,3.15268,3171.9,3171.0,3.14099947]
[1731762090512,3.1529,3171.7,3171.1,3.38912288]
[1731762090741,3.15307,3171.6,3171.2,0.23569288]
[1731762090956,3.15307,3171.6,3170.9,38.0]
[1731762091123,3.15307,3171.6,3171.0,0.23572229]
[1731762091361,3.15307,3171.6,3171.1,0.23572229]
[1731762091559,3.01747634,3172.6,3170.9,6.14099947]
[1731762091801,3.70273,3171.9,3171.2,3.15329]
[1731762091966,3.15284,3171.8,3171.2,3.15329]
[1731762092662,3.15284,3171.8,3171.0,3.15356]
[1731762092984,3.15289,3171.7,3171.0,3.1535]
[1731762093150,3.15289,3171.7,3171.1,0.23570439]
[1731762093352,3.15289,3171.7,3171.2,0.23570439]
[1731762093688,3.15289,3171.7,3171.1,3.15347]
[1731762096082,0.37973317,3171.7,3170.9,3.06306599]
[1731762096266,3.15309,3171.5,3170.8,3.46843]
[1731762096477,3.15303,3171.6,3171.0,3.15354]
[1731762096707,3.15355,3171.1,3170.4,3.48318111]
[1731762096853,3.15359,3171.0,3170.4,0.32903111]
[1731762097194,0.55,3170.2,3170.0,0.0016]
[1731762097356,3.15434,3170.3,3170.0,0.0016]
[1731762098151,3.0,3170.7,3170.0,0.0016]
[1731762098152,0.55,3170.2,3170.0,0.0016]
[1731762098356,3.15447,3170.1,3170.0,0.0016]
[1731762098788,3.70447,3170.1,3170.0,0.0016]
[1731762102688,3.15545,3169.2,3168.6,3.15596]
[1731762102999,3.15545,3169.2,3168.4,3.15609]
[1731762103205,0.55,3169.3,3168.4,3.15609]
[1731762103406,3.15558,3169.0,3168.2,3.15633]
[1731762103967,3.1557,3168.9,3168.2,3.15633]
[1731762104400,3.15581,3168.8,3168.0,3.15653]
[1731762104609,3.15577,3168.8,3168.2,3.15628]